bitfinex-derivatives/quotes_ETHF0:USTF0_20260204
["timestamp","ask_amount","ask_price","bid_price","bid_amount"]
[1770193893888,0.13215,2272.9,2272.0,2.50474683]
[1770193894082,2.63330893,2272.9,2272.2,2.20052186]
[1770193895989,0.13215,2272.9,2272.3,2.50474683]
[1770193896492,2.63330893,2272.9,2272.2,2.20052186]
[1770193900888,0.0055955,2273.1,2272.2,0.93992874]
[1770193900889,2.50115893,2272.5,2272.2,0.93992874]
[1770193901192,2.50115893,2272.5,2271.7,2.50474683]
[1770193901391,2.50115893,2272.5,2271.8,2.20085776]
[1770193901589,0.13219,2272.3,2271.4,2.50474683]
[1770193901789,0.1322,2272.0,2271.3,0.00450845]
[1770193902293,40.9322,2272.0,2271.3,0.00450845]
[1770193902591,0.13221,2271.9,2271.3,0.00450845]
[1770193904084,40.8,2272.0,2271.7,2.50474683]
[1770193904292,0.13218,2272.4,2271.7,2.50474683]
[1770193905094,2.63336893,2272.0,2271.3,0.00450845]
[1770193905285,43.43336893,2272.0,2271.3,0.00450845]
[1770193905486,40.93221,2272.0,2271.3,2.2054644]
[1770193905685,0.13221,2271.9,2271.3,2.2054644]
[1770193906088,2.63338893,2271.6,2270.7,2.50474683]
[1770193906594,2.63338893,2271.6,2271.0,2.20170928]
[1770193907089,2.63338893,2271.6,2271.0,2.20687269]
[1770193907485,0.13223,2271.6,2271.0,4.71161952]
[1770193907690,2.50115893,2271.9,2271.3,2.20170928]
[1770193907889,40.8,2272.0,2271.4,2.50474683]
[1770193908185,0.1322,2272.1,2271.4,2.50474683]
[1770193908586,8.94790739,2272.5,2271.6,4.70645611]
[1770193908793,45.21,2272.4,2271.6,4.70645611]
[1770193909590,40.8,2272.4,2271.6,4.70645611]
[1770193910292,40.8,2272.4,2271.7,2.50474683]
[1770193911299,0.13218,2272.5,2272.0,4.62365317]
[1770193912295,4.41,2272.7,2272.1,2.42194389]
[1770193912698,40.8,2272.6,2272.1,2.42194389]
[1770193913099,6.44674846,2272.9,2272.1,2.42194389]
[1770193913299,6.44674846,2273.0,2272.1,2.42194389]
[1770193913601,47.24674846,2273.0,2272.1,2.42194389]
[1770193913798,40.8,2273.0,2272.1,2.42194389]
[1770193914004,40.8,2273.0,2272.4,2.42194389]
[1770193914702,4.5477355,2273.1,2272.4,2.42194389]
[1770193915094,0.1377355,2273.1,2272.4,2.42194389]
[1770193916602,40.9377355,2273.1,2272.4,2.42194389]
[1770193917906,40.8055955,2273.1,2272.4,2.42194389]
[1770193918202,6.44674846,2274.0,2272.6,2.28685187]
[1770193918399,2.34684558,2273.9,2272.6,2.28685187]
[1770193918599,40.8,2273.8,2273.2,2.28685187]
[1770193918800,0.13209,2274.0,2273.3,4.48856115]
[1770193918998,0.13209,2274.0,2273.4,2.28685187]
[1770193919305,2.47893558,2274.0,2273.4,0.00565797]
[1770193919706,0.13209,2274.0,2273.4,0.00565797]
[1770193920007,40.8,2274.1,2273.4,2.29250984]
[1770193920208,0.00510102,2274.1,2273.7,2.28685187]
[1770193920405,6.44674846,2274.5,2273.7,2.28685187]
[1770193921100,2.34684558,2274.3,2273.6,2.20170928]
[1770193921304,2.35097572,2274.3,2273.6,2.20170928]
[1770193922708,2.48304572,2274.3,2273.6,2.20170928]
[1770193923908,0.13620014,2274.3,2273.7,2.28685187]
[1770193924811,0.13620014,2274.3,2273.6,4.48856115]
[1770193925012,0.13620014,2274.3,2273.7,2.28685187]
[1770193925510,40.8,2274.4,2273.7,2.28685187]
[1770193925710,40.8,2274.4,2273.9,4.48856115]
[1770193926412,43.14684558,2274.4,2273.9,2.20170928]
[1770193926612,0.13207,2274.3,2273.9,2.20170928]
[1770193928107,2.47891558,2274.3,2273.9,1.93220928]
[1770193928315,2.47891558,2274.3,2273.7,0.85820928]
[1770193929513,2.47891558,2274.3,2273.4,0.00565797]
[1770193929514,0.13209,2274.0,2273.4,0.00565797]
[1770193929715,2.47894558,2273.9,2273.4,1.93585803]
[1770193930015,2.47894558,2273.8,2273.0,2.28685187]
[1770193930207,2.47894558,2273.8,2273.2,2.19956187]
[1770193930410,0.1321,2273.8,2273.2,2.19956187]
[1770193930617,0.13207,2274.3,2273.3,2.28685187]
[1770193930813,2.47891558,2274.3,2273.3,2.29223216]
[1770193931012,2.47891558,2274.3,2273.6,2.19956187]
[1770193932010,2.47892558,2274.2,2273.6,2.19956187]
[1770193932715,0.1321,2273.8,2273.3,0.00538029]
[1770193932919,2.47894558,2273.8,2273.3,0.00538029]
[1770193933618,0.1321,2273.8,2273.3,2.29223216]
[1770193934113,2.34684558,2274.2,2273.3,2.29223216]
[1770193934311,0.13207,2274.2,2273.6,2.19920407]
[1770193934510,2.47891558,2274.2,2273.6,2.19920407]
[1770193934719,2.47892558,2274.1,2273.6,2.19920407]
[1770193935015,2.34684558,2274.0,2273.3,0.00538029]
[1770193935221,2.34684558,2273.6,2273.3,0.00538029]
[1770193935419,2.34684558,2273.6,2272.9,2.28685187]
[1770193935721,2.34684558,2273.6,2272.6,2.28685187]
[1770193936015,6.01529443,2273.5,2272.6,2.28685187]
[1770193936221,0.13213,2273.2,2272.7,2.28685187]
[1770193936421,40.8,2273.2,2272.7,2.29208471]
[1770193936724,0.13211,2273.6,2273.0,2.28685187]
[1770193937520,40.8,2273.5,2273.0,2.28685187]
[1770193937719,0.13211,2273.6,2273.0,2.28685187]
[1770193938218,40.93211,2273.6,2273.0,2.28685187]
[1770193938821,0.13211,2273.6,2273.0,2.28685187]
[1770193939618,40.8,2273.9,2273.0,2.28685187]
[1770193940423,45.21,2273.9,2273.0,2.28685187]
[1770193941028,45.34209,2273.9,2273.0,2.28685187]
[1770193941229,40.93209,2273.9,2273.0,2.28685187]
[1770193941623,46.71882336,2273.9,2273.0,2.28685187]
[1770193941821,5.91882336,2273.8,2272.9,2.20013305]
[1770193942129,0.13212,2273.5,2272.9,2.20013305]
[1770193942821,0.13213,2273.3,2272.7,0.00523284]
[1770193943022,0.13213,2273.3,2271.7,2.6222415]
[1770193943023,0.13213,2273.3,2272.4,2.36392329]
[1770193943221,0.13213,2273.3,2272.7,2.19967095]
[1770193943930,0.13213,2273.3,2272.7,4.56359424]
[1770193944127,0.13213,2273.3,2272.7,4.56820319]
[1770193944429,0.13213,2273.3,2272.7,2.2042799]
[1770193945130,0.13213,2273.3,2272.8,2.36392329]
[1770193946328,6.44674846,2273.5,2272.8,2.36392329]
[1770193946624,6.57884846,2273.8,2273.1,2.36392329]
[1770193947524,4.41731943,2274.1,2273.1,2.36392329]
[1770193947720,4.41731943,2274.1,2273.5,4.56359424]
[1770193947919,0.13207,2274.3,2273.5,4.56359424]
[1770193948124,40.8,2274.2,2273.6,2.36392329]
[1770193948723,7.86700803,2274.4,2273.6,2.36392329]
[1770193948724,0.00397916,2274.4,2273.6,2.36392329]
[1770193949023,0.00397916,2274.4,2273.8,2.36392329]
[1770193949527,0.13204,2274.8,2274.3,2.36392329]
[1770193949728,0.13078632,2274.8,2274.3,2.36392329]
[1770193949928,40.93078632,2274.8,2274.3,2.36392329]
[1770193950129,40.93078632,2274.8,2274.2,2.19967095]
[1770193950324,0.13205,2274.6,2273.2,2.36392329]
[1770193950624,1.58679328,2274.6,2273.9,2.19747037]
[1770193950820,1.58115961,2274.4,2273.5,2.36392329]
[1770193951021,3.62921109,2274.3,2273.5,2.36392329]
[1770193951220,5.99115961,2274.2,2273.2,2.36955061]
[1770193951423,5.99115961,2274.1,2273.2,2.36955061]
[1770193951622,0.13211,2273.7,2272.6,2.36392329]
[1770193952027,1.70764229,2273.7,2272.6,2.36392329]
[1770193952731,1.70764229,2273.7,2272.6,2.36702838]
[1770193952732,0.13211,2273.7,2272.6,2.36702838]
[1770193953227,0.13211,2273.6,2272.6,2.36702838]
[1770193953428,0.13213,2273.3,2272.6,0.00310509]
[1770193953628,0.13214,2273.2,2272.3,2.36392329]
[1770193954526,0.13214,2273.2,2271.4,2.6222415]
[1770193954527,1.59397953,2273.3,2271.5,2.36392329]
[1770193954729,0.13217,2272.7,2271.5,2.36392329]
[1770193955333,0.13642329,2272.7,2271.5,2.36771915]
[1770193959242,0.13218,2272.5,2271.5,2.36771915]
[1770193959940,0.13218,2272.4,2271.5,2.36771915]
[1770193960643,0.00425329,2272.7,2271.5,2.36771915]
[1770193963041,0.13214,2273.2,2271.5,2.36771915]
[1770193963346,0.13215,2273.0,2271.5,2.36771915]
[1770193964044,0.13689576,2273.0,2271.5,2.36771915]
[1770193964246,0.13215,2272.9,2271.5,2.36771915]
[1770193965350,0.13216,2272.8,2271.5,2.36771915]
[1770193966149,0.00474576,2273.0,2271.5,2.36771915]
[1770193967352,0.13214,2273.2,2271.5,2.36771915]
[1770193967646,0.13214,2273.2,2271.6,2.36392329]
[1770193968552,0.13723841,2273.2,2271.6,2.36392329]
[1770193969650,0.00509841,2273.2,2271.6,2.36392329]
[1770193969851,0.00509841,2273.2,2271.8,2.36392329]
[1770193972858,0.13216,2272.8,2271.8,2.36392329]
[1770193973359,0.13216,2272.7,2271.8,2.36392329]
[1770193973757,6.49541488,2273.1,2271.8,2.36392329]
[1770193976264,6.63264329,2273.2,2271.8,2.36392329]
[1770193976964,0.13722841,2273.2,2271.8,2.36392329]
[1770193978262,0.00509841,2273.2,2271.8,2.36392329]
[1770193980063,6.49541488,2274.0,2272.3,2.44370294]
[1770193980263,47.29541488,2274.0,2272.4,2.44370294]
[1770193980860,47.29975621,2274.0,2272.4,2.44370294]
[1770193981663,47.43184621,2274.0,2272.4,2.44370294]
[1770193981858,40.93643133,2274.0,2272.5,2.44370294]
[1770193984658,1.70853647,2273.9,2272.5,2.44370294]
[1770193984964,0.13209,2273.9,2272.5,2.44370294]
[1770193988069,0.13207,2274.4,2272.8,2.44370294]
[1770193988568,6.62745488,2274.8,2273.0,2.44370294]
[1770193988866,47.42745488,2274.8,2273.0,2.44370294]
[1770193989066,47.43163923,2274.8,2273.0,2.44370294]
[1770193989266,40.93622435,2274.8,2273.0,2.44370294]
[1770193990164,40.93622435,2274.8,2273.0,2.57584294]
[1770193990467,0.13622435,2274.8,2273.1,2.44370294]
[1770193990761,0.13622435,2274.8,2273.1,2.44926685]
[1770193991462,0.13622435,2274.8,2273.1,2.58139685]
[1770193991666,0.13622435,2274.8,2273.2,2.57583294]
[1770193991867,0.00418435,2274.8,2273.2,2.57583294]
[1770193992068,0.00418435,2274.8,2273.2,5.19807444]
[1770193992267,0.00418435,2274.8,2273.4,2.44370294]
[1770193992565,0.00418435,2274.8,2273.4,2.57582294]
[1770193992865,1.54062396,2274.8,2273.4,2.44370294]
[1770193993069,1.66848961,2274.7,2273.4,2.44370294]
[1770193993270,0.13206,2274.5,2273.4,2.44370294]
[1770193993472,0.13207,2274.3,2273.4,2.44370294]
[1770193993669,1.66850961,2274.3,2273.4,2.44370294]
[1770193993869,1.66851961,2274.1,2273.2,2.44370294]
[1770193994164,0.13208,2274.1,2273.2,2.44370294]
[1770193994368,5.94643961,2274.4,2273.2,2.44370294]
[1770193994567,1.53643961,2274.4,2273.2,2.44370294]
[1770193994770,1.53643961,2274.7,2273.2,2.44370294]
[1770193995371,1.66848961,2274.7,2273.2,2.44370294]
[1770193995570,1.56761447,2274.6,2273.2,2.44370294]
[1770193996167,0.13205,2274.7,2273.2,2.44370294]
[1770193996371,0.00418435,2274.8,2273.2,2.44370294]
[1770193996568,1.5017648,2274.8,2273.2,2.44370294]
[1770193997069,5.90758045,2274.7,2273.2,2.44370294]
[1770193997873,6.03963045,2274.7,2273.2,2.44370294]
[1770193998372,1.49758045,2274.6,2273.2,2.44370294]
[1770194001567,0.13205,2274.7,2273.2,2.44370294]
[1770194002971,0.00418435,2274.8,2273.2,2.44370294]
[1770194003173,0.00418435,2274.8,2273.5,2.50685661]
[1770194003769,6.49541488,2275.8,2273.7,2.50685661]
[1770194004074,1.47838546,2275.4,2273.9,2.50685661]
[1770194004379,1.61040546,2275.2,2273.9,2.50685661]
[1770194004672,6.02040546,2275.2,2273.9,2.50685661]
[1770194004872,6.02534676,2275.2,2273.9,2.50685661]
[1770194005176,1.46913157,2275.1,2273.9,2.50685661]
[1770194006175,0.1369613,2275.2,2273.9,2.50685661]
[1770194006375,1.60609287,2275.2,2273.9,2.50685661]
[1770194009772,0.1369613,2275.2,2273.9,2.50685661]
[1770194010172,1.63153903,2275.2,2273.9,2.50685661]
[1770194010368,0.13202,2275.1,2273.9,2.50685661]
[1770194010569,1.62660773,2275.0,2273.9,2.50685661]
[1770194010772,1.49457773,2274.9,2273.9,2.50685661]
[1770194011167,1.60162512,2274.8,2273.9,2.50685661]
[1770194014973,6.49541488,2275.0,2273.9,2.50685661]
[1770194015272,1.48604521,2274.9,2273.9,2.50685661]
[1770194015477,1.48604521,2274.8,2273.9,2.50685661]
[1770194017684,1.4885715,2274.7,2273.9,2.50685661]
[1770194018576,4.41,2274.5,2273.6,2.50685661]
[1770194018777,4.41,2274.4,2273.4,2.50685661]
[1770194019182,1.46485243,2274.3,2273.4,2.50685661]
[1770194019783,1.46485243,2274.2,2273.4,2.50685661]
[1770194019982,1.46485243,2274.2,2273.1,0.00556391]
[1770194019983,1.46485243,2274.0,2273.1,2.51242052]
[1770194020779,6.6744426,2274.0,2273.1,2.51242052]
[1770194020983,1.46485243,2274.0,2273.1,2.51242052]
[1770194021179,40.8,2274.1,2273.1,2.51242052]
[1770194021482,5.20959017,2274.4,2273.1,2.51242052]
[1770194021684,5.20959017,2274.5,2273.1,2.51242052]
[1770194021879,46.00959017,2274.5,2273.1,2.51242052]
[1770194022080,5.20959017,2274.5,2273.1,2.51242052]
[1770194022485,5.20959017,2274.6,2273.1,2.51242052]
[1770194023378,5.20959017,2274.5,2273.1,2.51242052]
[1770194023579,6.76994811,2274.5,2273.1,2.51242052]
[1770194025786,1.56035794,2274.5,2273.1,2.51242052]
[1770194026285,6.76994811,2274.5,2273.1,2.51242052]
[1770194026687,1.56035794,2274.5,2273.1,2.51242052]
[1770194027286,0.13206,2274.5,2273.1,2.51242052]
[1770194029390,5.20959017,2274.6,2273.4,2.50685661]
[1770194029590,5.20959017,2274.7,2273.4,2.50685661]
[1770194029793,1.42858165,2274.6,2273.4,2.50685661]
[1770194030093,1.56064165,2274.5,2273.4,2.50685661]
[1770194030690,0.13206,2274.5,2273.4,2.50685661]
[1770194033996,5.20959017,2274.6,2273.4,2.50685661]
[1770194036294,5.34164017,2274.7,2273.4,2.50685661]
[1770194036495,5.20959017,2274.8,2273.5,2.27252206]
[1770194036899,6.78695581,2274.8,2273.5,2.27252206]
[1770194037292,5.34164017,2274.7,2273.5,2.27252206]
[1770194038999,6.78696581,2274.7,2273.5,2.27252206]
[1770194039801,5.34164017,2274.7,2273.5,2.27252206]
[1770194040599,5.20959017,2274.7,2273.5,2.27252206]
[1770194041096,2.69640043,2274.7,2273.7,2.04517961]
[1770194041295,0.13201,2275.4,2274.2,2.33446621]
[1770194041993,2.33634765,2275.2,2274.2,2.33446621]
[1770194042495,2.33140635,2274.9,2273.9,2.33446621]
[1770194042695,2.46344635,2274.9,2273.7,2.33446621]
[1770194044201,2.33140635,2274.9,2273.8,2.33446621]
[1770194044401,2.33140635,2274.9,2273.9,2.33446621]
[1770194049906,2.46343635,2275.0,2273.9,2.33446621]
[1770194051801,0.0049413,2275.2,2273.9,2.33446621]
[1770194052006,0.0049413,2275.2,2274.0,2.33446621]
[1770194052196,0.0049413,2275.2,2274.1,2.33446621]
[1770194052507,0.0049413,2275.2,2274.2,2.33446621]
[1770194053302,2.33634765,2275.2,2274.2,2.33446621]
[1770194059313,0.0049413,2275.2,2274.2,2.33446621]
[1770194060504,0.0049413,2275.2,2274.3,2.33446621]
[1770194062511,2.39333186,2275.9,2274.6,2.42403177]
[1770194062811,2.39333186,2275.9,2274.7,2.42403177]
[1770194063512,2.39877832,2275.9,2274.7,2.42756377]
[1770194064006,2.39333186,2275.8,2274.7,2.42756377]
[1770194065610,2.52531186,2275.8,2274.7,2.42756377]
[1770194067010,2.52531186,2275.8,2274.7,0.003532]
[1770194067210,2.39333186,2274.6,2273.7,0.1]
[1770194067516,2.39333186,2274.3,2272.9,1.13553014]
[1770194067715,41.4634056,2274.3,2272.9,1.13553014]
[1770194068017,2.39333186,2274.3,2273.0,4.3952]
[1770194068216,2.39333186,2274.2,2273.0,4.3952]
[1770194068611,2.39333186,2274.2,2273.1,4.3952]
[1770194068911,2.39333186,2274.2,2272.9,0.00529895]
[1770194068912,2.39333186,2273.7,2272.9,0.00529895]
[1770194069415,2.39333186,2273.7,2272.9,4.40049895]
[1770194071514,2.39333186,2273.7,2272.9,0.00529895]
[1770194074515,2.52544186,2273.7,2272.9,0.00529895]
[1770194075111,39.07007374,2273.8,2271.5,0.13223]
[1770194075112,2.52545186,2273.5,2272.2,2.42403177]
[1770194075314,2.39333186,2273.5,2272.5,2.42403177]
[1770194075616,2.39333186,2274.0,2273.1,2.42403177]
[1770194076009,2.39333186,2274.0,2273.2,6.81923177]
[1770194076214,2.39333186,2274.0,2273.2,2.42403177]
[1770194076415,2.39333186,2274.0,2273.3,4.3952]
[1770194076915,2.39333186,2274.0,2273.4,4.3952]
[1770194077110,1.91785298,2274.0,2273.3,4.3952]
[1770194077509,1.91785298,2274.0,2273.2,2.42403177]
[1770194077510,1.91785298,2274.0,2273.4,4.3952]
[1770194077711,1.91785298,2274.0,2273.3,4.3952]
[1770194078119,1.91785298,2274.0,2273.4,4.3952]
[1770194078311,1.91785298,2274.0,2273.3,6.81923177]
[1770194078711,1.91785298,2274.0,2273.4,4.3952]
[1770194080621,1.91785298,2274.0,2273.1,0.00331751]
[1770194081321,1.91785298,2274.0,2273.1,2.42734928]
[1770194081525,1.91785298,2274.0,2273.2,2.42403177]
[1770194082121,2.39333186,2273.8,2271.9,0.1322]
[1770194082317,2.39333186,2273.8,2272.2,2.42403177]
[1770194082516,2.39333186,2273.8,2272.3,2.42403177]
[1770194082714,2.39333186,2273.8,2272.5,2.42403177]
[1770194083019,2.52543186,2273.8,2272.5,2.42403177]
[1770194083220,2.52543186,2273.8,2272.6,2.42403177]
[1770194085129,2.52543186,2273.8,2273.0,2.42403177]
[1770194085423,2.39333186,2273.8,2273.0,2.42403177]
[1770194085623,2.39333186,2273.8,2273.1,4.3952]
[1770194086627,2.39333186,2273.8,2273.0,2.42403177]
[1770194086628,2.39333186,2273.8,2272.6,2.42403177]
[1770194086924,2.39333186,2273.8,2272.8,2.42403177]
[1770194087429,2.39333186,2273.8,2272.9,4.3952]
[1770194090328,2.39333186,2273.6,2272.9,4.3952]
[1770194090825,2.39333186,2273.6,2273.0,4.3952]
[1770194091025,2.39333186,2273.6,2272.8,6.72993484]
[1770194091428,2.39333186,2273.6,2273.0,4.3952]
[1770194091819,2.39333186,2273.6,2273.1,4.3952]
[1770194092327,2.39333186,2273.6,2272.8,2.33473484]
[1770194092528,2.39333186,2273.6,2272.8,6.72993484]
[1770194092829,2.39333186,2273.6,2272.9,4.3952]
[1770194093327,41.4634056,2273.6,2272.9,4.3952]
[1770194094128,2.2853665,2273.9,2273.2,6.72993484]
[1770194094322,41.35544024,2273.9,2273.2,2.33473484]
[1770194094524,2.2853665,2273.9,2273.4,4.3952]
[1770194095024,2.2853665,2273.9,2273.2,2.33473484]
[1770194095025,2.2853665,2273.9,2273.5,4.3952]
[1770194095323,2.2853665,2273.9,2273.4,4.3952]
[1770194095727,2.2853665,2273.9,2273.5,4.3952]
[1770194096031,2.2853665,2273.9,2273.4,4.3952]
[1770194096230,41.35544024,2273.9,2273.4,4.3952]
[1770194096428,41.35544024,2273.9,2273.5,4.3952]
[1770194096730,41.35544024,2273.9,2273.4,4.3952]
[1770194097132,41.35544024,2273.9,2273.5,4.3952]
[1770194097331,39.07007374,2273.8,2273.4,4.3952]
[1770194097730,39.07007374,2273.8,2273.6,4.3952]
[1770194097928,39.07007374,2273.8,2273.5,4.3952]
[1770194098326,39.07007374,2273.8,2273.0,2.28070629]
[1770194098531,39.07007374,2273.6,2273.0,2.28070629]
[1770194098733,39.07007374,2273.6,2273.0,4.16112182]
[1770194098932,39.07007374,2273.5,2273.1,1.88041553]
[1770194099132,39.07007374,2273.5,2272.9,2.28070629]
[1770194099332,39.07007374,2273.6,2273.0,4.16112182]
[1770194099533,39.07007374,2273.5,2273.0,2.28070629]
[1770194099834,39.07007374,2273.5,2273.0,4.16112182]
[1770194100127,39.07007374,2273.5,2273.1,4.16112182]
[1770194100332,39.07007374,2273.6,2273.2,2.28070629]
[1770194100633,39.07007374,2273.6,2273.3,1.88041553]
[1770194100833,39.07007374,2273.6,2273.4,1.88041553]
[1770194101331,39.07007374,2273.6,2273.5,1.88041553]
[1770194101533,39.07007374,2273.6,2273.4,4.16112182]
[1770194101733,39.07007374,2273.6,2273.2,2.28070629]
[1770194101930,41.29297543,2273.6,2272.9,2.28070629]
[1770194102127,41.29297543,2273.4,2272.6,4.16112182]
[1770194102327,2.22290169,2273.1,2272.5,0.00324512]
[1770194102633,41.29297543,2272.9,2272.5,0.00324512]
[1770194102836,39.07007374,2272.8,2272.2,2.28070629]
[1770194103132,2.21714766,2272.6,2271.5,2.28070629]
[1770194103433,39.07007374,2272.4,2271.5,4.16112182]
[1770194103736,2.60603157,2272.2,2271.6,2.28070629]
[1770194103936,2.60603157,2272.2,2271.9,2.28070629]
[1770194104235,0.00366236,2272.4,2272.0,2.28070629]
[1770194104434,0.00366236,2272.4,2272.0,4.16112182]
[1770194104736,0.00366236,2272.4,2272.2,1.88041553]
[1770194104932,0.00366236,2272.4,2272.1,2.28070629]
[1770194105231,39.07007374,2272.8,2272.2,4.16112182]
[1770194105438,41.41828276,2273.0,2272.2,2.28070629]
[1770194105632,41.41828276,2273.0,2272.2,4.16112182]
[1770194105832,41.41828276,2273.0,2272.2,2.28070629]
[1770194106033,2.21605902,2272.9,2272.2,1.88041553]
[1770194106332,2.22028156,2272.9,2272.2,1.88041553]
[1770194106630,0.00422254,2272.9,2272.3,4.16112182]
[1770194106837,0.00422254,2272.9,2272.3,2.28070629]
[1770194107038,0.00422254,2272.9,2272.4,4.16112182]
[1770194107335,0.00422254,2272.9,2272.4,2.28070629]
[1770194107535,0.00422254,2272.9,2272.5,1.88041553]
[1770194107832,39.07007374,2273.3,2272.8,2.28070629]
[1770194108033,41.20582211,2273.5,2272.8,2.28070629]
[1770194108238,39.07007374,2273.5,2272.9,1.88041553]
[1770194108537,7.34509153,2273.7,2273.0,1.88041553]
[1770194108538,41.20582211,2273.7,2273.0,1.88041553]
[1770194108738,2.13574837,2273.6,2273.0,1.88041553]
[1770194109134,2.14017192,2273.6,2273.1,1.88041553]
[1770194109439,0.00442355,2273.6,2273.1,2.28507488]
[1770194109731,0.00442355,2273.6,2273.2,1.88041553]
[1770194109939,0.00442355,2273.6,2273.4,1.88041553]
[1770194110330,39.07007374,2273.8,2273.5,1.88041553]
[1770194110639,39.07007374,2273.9,2273.5,1.88041553]
[1770194111038,39.07007374,2273.9,2273.2,2.28070629]
[1770194111439,39.07363747,2273.9,2273.2,2.28070629]
[1770194112737,0.00356373,2273.9,2273.2,2.28070629]
[1770194113342,39.07363747,2273.9,2273.2,2.28070629]
[1770194113539,0.00356373,2273.9,2273.2,2.28070629]
[1770194117742,39.07007374,2273.8,2273.1,0.00436859]
[1770194117941,39.07007374,2273.8,2273.1,2.34467557]
[1770194118638,39.07007374,2273.7,2273.1,0.00436859]
[1770194118844,39.07007374,2273.6,2273.1,0.00436859]
[1770194119142,39.07007374,2273.6,2272.8,2.34030698]
[1770194119343,39.07007374,2273.5,2272.8,2.34030698]
[1770194120144,39.07007374,2273.5,2272.8,2.34396054]
[1770194120343,39.07007374,2273.4,2272.8,0.00365356]
[1770194120541,39.07007374,2273.3,2272.8,0.00365356]
[1770194120745,39.07007374,2273.2,2272.5,2.34141326]
[1770194120945,39.07007374,2273.1,2272.5,2.34141326]
[1770194121146,39.07007374,2273.2,2272.5,2.34141326]
[1770194121847,39.07007374,2273.2,2272.5,2.34454375]
[1770194122848,39.07007374,2273.3,2272.5,2.34454375]
[1770194124551,39.40159652,2273.2,2272.5,0.00313049]
[1770194124751,39.40159652,2273.0,2272.5,0.00313049]
[1770194124951,0.33152278,2273.0,2272.3,2.40016665]
[1770194125244,0.33152278,2273.0,2271.4,2.40016665]
[1770194125245,39.07007374,2272.8,2271.4,2.40016665]
[1770194125646,39.20221374,2273.1,2271.4,2.40016665]
[1770194125845,39.07007374,2273.1,2271.5,2.40016665]
[1770194126143,5.20934316,2273.2,2271.5,2.40016665]
[1770194126144,39.07007374,2273.4,2272.1,2.40016665]
[1770194126348,39.07007374,2273.3,2272.1,2.40016665]
[1770194127748,39.07007374,2273.5,2272.1,2.40016665]
[1770194129847,39.20218374,2273.6,2272.1,2.40016665]
[1770194130048,39.20218374,2273.6,2272.1,2.53236665]
[1770194130354,39.07007374,2273.5,2272.1,2.53236665]
[1770194130855,39.20218374,2273.6,2272.1,2.53236665]
[1770194131153,39.20218374,2273.6,2272.2,2.48212815]
[1770194131756,39.07007374,2273.7,2272.2,2.48212815]
[1770194132758,39.07363747,2273.9,2272.5,2.48212815]
[1770194133054,0.00356373,2273.9,2272.5,2.48212815]
[1770194133354,0.00356373,2273.9,2272.5,2.61429815]
[1770194133851,0.00356373,2273.9,2272.5,5.24167348]
[1770194134053,0.00356373,2273.9,2272.6,2.46042046]
[1770194134253,0.00356373,2273.9,2272.6,2.59259046]
[1770194134454,0.00356373,2273.9,2272.6,5.21996579]
[1770194134655,0.00356373,2273.9,2272.7,2.46042046]
[1770194135556,0.00356373,2273.9,2272.9,2.46046571]
[1770194135759,39.07007374,2274.3,2273.0,2.46046571]
[1770194136057,39.20213374,2274.4,2273.0,2.46046571]
[1770194136453,39.20213374,2274.4,2273.1,2.46046571]
[1770194136657,39.07574961,2274.4,2273.1,2.46548196]
[1770194137059,0.00567587,2274.4,2273.1,2.46548196]
[1770194137960,0.00567587,2274.4,2273.1,5.22499729]
[1770194138161,0.00567587,2274.4,2273.2,2.44047311]
[1770194142261,39.07007374,2275.5,2274.2,2.4429558]
[1770194142455,39.07007374,2275.6,2274.2,2.4429558]
[1770194143260,0.00551755,2275.6,2274.2,2.4429558]
[1770194143454,0.14289415,2275.5,2274.2,2.4429558]
[1770194144056,0.13751755,2275.6,2274.2,2.4429558]
[1770194145461,0.00551755,2275.6,2274.2,2.4429558]
[1770194145668,0.00551755,2275.6,2274.6,2.42220468]
[1770194146264,0.22196456,2276.2,2275.0,2.42220468]
[1770194147162,0.22603547,2276.2,2275.0,2.42220468]
[1770194147460,0.22603547,2276.2,2275.0,2.42777545]
[1770194150468,0.21988893,2276.1,2275.0,2.42777545]
[1770194150967,0.22100496,2276.0,2275.0,2.42777545]
[1770194151769,0.22100496,2275.9,2275.0,2.42777545]
[1770194152270,0.35298496,2275.9,2275.0,0.00557077]
[1770194152470,0.22100496,2275.8,2275.0,0.00557077]
[1770194153566,0.23113488,2275.4,2274.2,2.43130204]
[1770194153775,0.23113488,2275.3,2274.2,2.43130204]
[1770194154670,0.23113488,2275.3,2274.2,2.4368588]
[1770194154971,0.23113488,2275.6,2274.2,2.4368588]
[1770194155365,40.8,2275.7,2274.2,2.4368588]
[1770194155773,0.19629792,2275.6,2274.2,2.4368588]
[1770194157572,0.10057125,2275.5,2274.2,2.4368588]
[1770194157772,0.10057125,2275.4,2274.2,2.4368588]
[1770194158169,0.132,2275.5,2274.2,2.4368588]
[1770194158669,0.10057125,2275.7,2274.2,2.4368588]
[1770194158670,0.10057125,2275.3,2274.2,2.4368588]
[1770194160073,0.09625337,2275.2,2274.2,2.4368588]
[1770194160376,0.13206,2274.5,2273.2,2.46849175]
[1770194161266,0.08785868,2275.0,2273.2,2.46849175]
[1770194161466,0.09164819,2275.0,2273.4,2.46991072]
[1770194161668,0.00378951,2275.0,2273.4,2.60203072]
[1770194162076,0.00378951,2275.0,2273.8,2.46991072]
[1770194163280,0.132,2275.5,2273.8,2.60201072]
[1770194164372,0.13737478,2275.5,2273.8,2.60201072]
[1770194164576,0.22824964,2275.5,2273.8,2.60201072]
[1770194164978,0.13737478,2275.5,2273.8,2.60201072]
[1770194165377,7.2698367,2275.5,2273.8,2.60201072]
[1770194165878,0.2649234,2275.5,2273.8,2.60201072]
[1770194166179,4.6749234,2275.5,2273.8,2.60201072]
[1770194166380,7.2698367,2275.5,2273.8,2.60201072]
[1770194166981,2.8598367,2275.5,2273.8,2.60201072]
[1770194167182,0.13737478,2275.5,2273.8,2.60201072]
[1770194167382,0.13737478,2275.5,2273.7,4.67233104]
[1770194167383,0.00537478,2275.5,2274.2,2.4575029]
[1770194168381,0.13278897,2275.4,2274.2,2.4575029]
[1770194168882,0.13201,2275.4,2274.2,2.4575029]
[1770194169575,0.13202,2275.2,2274.2,2.4575029]
[1770194170180,2.7269333,2275.2,2274.2,2.4575029]
[1770194170380,2.5949133,2275.1,2274.2,2.4575029]
[1770194171584,2.74147898,2275.1,2274.2,2.4575029]
[1770194171784,2.5949133,2274.8,2273.6,2.4575029]
[1770194172581,2.5949133,2274.7,2273.6,2.4575029]
[1770194173291,2.5949133,2274.8,2273.6,2.4575029]
[1770194173583,2.7269533,2274.8,2273.6,2.4575029]
[1770194173784,2.5949133,2274.7,2273.6,2.4575029]
[1770194174084,2.7269533,2274.8,2273.6,2.4575029]
[1770194177884,0.16712466,2274.6,2273.6,2.4575029]
[1770194178088,2.89409796,2274.5,2273.6,2.4575029]
[1770194178386,2.5949133,2274.4,2273.6,2.4575029]
[1770194180688,2.5949133,2274.5,2273.6,2.4575029]